[Event "Titled Tuesday Blitz May 11 2021"]
[White "Kollars, Dmitrij"]
[Black "Ranindu2003"]
[WhiteFideId "12909572"]
[WhiteElo "2576"]
[BlackElo "2604"]
[Result "1-0"]
[Round "02"]
[TimeControl "180+1"]
[Date "2021.05.11"]
[WhiteClock "0:00:25"]
[BlackClock "0:00:04"]

1. Nf3 {[%clk 0:03:00]}  Nf6 {[%clk 0:02:59]} 2. d4 {[%clk 0:02:59]}  e6 {[%clk 0:02:59]} 3. Bg5 {[%clk 0:02:59]}  d5 {[%clk 0:02:59]} 4. Nbd2 {[%clk 0:02:58]}  Be7 {[%clk 0:02:58]} 5. e3 {[%clk 0:02:59]}  b6 {[%clk 0:02:57]} 6. c3 {[%clk 0:02:57]}  Bb7 {[%clk 0:02:58]} 7. Bd3 {[%clk 0:02:57]}  O-O {[%clk 0:02:56]} 8. Ne5 {[%clk 0:02:52]}  Ne4 {[%clk 0:02:54]} 9. Bxe7 {[%clk 0:02:52]}  Qxe7 {[%clk 0:02:54]} 10. O-O {[%clk 0:02:47]}  Nd7 {[%clk 0:02:49]} 11. Ndf3 {[%clk 0:02:30]}  f6 {[%clk 0:02:42]} 12. Nxd7 {[%clk 0:02:29]}  Qxd7 {[%clk 0:02:42]} 13. c4 {[%clk 0:02:25]}  Rad8 {[%clk 0:02:34]} 14. Qc2 {[%clk 0:02:23]}  c5 {[%clk 0:02:21]} 15. cxd5 {[%clk 0:02:21]}  exd5 {[%clk 0:02:21]} 16. Rfd1 {[%clk 0:02:09]}  Qe7 {[%clk 0:02:17]} 17. dxc5 {[%clk 0:02:04]}  bxc5 {[%clk 0:02:16]} 18. Rac1 {[%clk 0:01:49]}  Rc8 {[%clk 0:02:01]} 19. Qa4 {[%clk 0:01:38]}  Bc6 {[%clk 0:01:48]} 20. Qa3 {[%clk 0:01:36]}  Rfd8 {[%clk 0:01:41]} 21. Nd4 {[%clk 0:01:19]}  Be8 {[%clk 0:01:22]} 22. Bxe4 {[%clk 0:01:17]}  dxe4 {[%clk 0:01:13]} 23. Nb3 {[%clk 0:01:17]}  Rxd1+ {[%clk 0:01:04]} 24. Rxd1 {[%clk 0:01:18]}  Bf7 {[%clk 0:01:05]} 25. h3 {[%clk 0:01:12]}  Kf8 {[%clk 0:00:41]} 26. Rc1 {[%clk 0:01:07]}  c4 {[%clk 0:00:38]} 27. Qa5 {[%clk 0:01:06]}  Qb7 {[%clk 0:00:29]} 28. Qa3+ {[%clk 0:00:56]}  Qe7 {[%clk 0:00:26]} 29. Qa6 {[%clk 0:00:56]}  Qe6 {[%clk 0:00:19]} 30. Qxe6 {[%clk 0:00:51]}  Bxe6 {[%clk 0:00:20]} 31. Nd4 {[%clk 0:00:52]}  Bd5 {[%clk 0:00:20]} 32. Kf1 {[%clk 0:00:47]}  a6 {[%clk 0:00:17]} 33. Ke2 {[%clk 0:00:46]}  g6 {[%clk 0:00:17]} 34. Rc2 {[%clk 0:00:43]}  Ke7 {[%clk 0:00:17]} 35. Kd2 {[%clk 0:00:43]}  Kd6 {[%clk 0:00:17]} 36. Rc3 {[%clk 0:00:44]}  f5 {[%clk 0:00:16]} 37. Ra3 {[%clk 0:00:43]}  Bb7 {[%clk 0:00:15]} 38. Kc3 {[%clk 0:00:43]}  Rc5 {[%clk 0:00:14]} 39. Ra4 {[%clk 0:00:42]}  h5 {[%clk 0:00:09]} 40. h4 {[%clk 0:00:39]}  a5 {[%clk 0:00:07]} 41. Rxc4 {[%clk 0:00:36]}  Rxc4+ {[%clk 0:00:04]} 42. Kxc4 {[%clk 0:00:36]}  Bd5+ {[%clk 0:00:04]} 43. Kb5 {[%clk 0:00:37]}  Bxa2 {[%clk 0:00:05]} 44. g3 {[%clk 0:00:33]}  Kd5 {[%clk 0:00:06]} 45. Kxa5 {[%clk 0:00:28]}  Bc4 {[%clk 0:00:06]} 46. Kb4 {[%clk 0:00:28]}  Bd3 {[%clk 0:00:05]} 47. Kc3 {[%clk 0:00:28]}  Ba6 {[%clk 0:00:04]} 48. Nc2 {[%clk 0:00:27]}  Bf1 {[%clk 0:00:03]} 49. b3 {[%clk 0:00:26]}  Kc5 {[%clk 0:00:03]} 50. Nd4 {[%clk 0:00:24]}  Bd3 {[%clk 0:00:03]} 51. Ne6+ {[%clk 0:00:24]}  Kd6 {[%clk 0:00:04]} 52. Nf4 {[%clk 0:00:25]} 1-0


[Site "https://www.chess.com"]

[Event "Titled Tuesday Blitz May 11 2021"]
[White "Korchmar, Vasiliy"]
[Black "Tari, Aryan"]
[WhiteFideId "24131750"]
[BlackFideId "1510045"]
[WhiteElo "2370"]
[BlackElo "2656"]
[Result "1/2-1/2"]
[Round "02"]
[TimeControl "180+1"]
[Date "2021.05.11"]
[WhiteClock "0:00:05"]
[BlackClock "0:00:09"]

1. d4 {[%clk 0:03:00]}  d5 {[%clk 0:02:50]} 2. Nf3 {[%clk 0:03:01]}  Nf6 {[%clk 0:02:48]} 3. Bf4 {[%clk 0:03:01]}  Bf5 {[%clk 0:02:33]} 4. e3 {[%clk 0:02:59]}  e6 {[%clk 0:02:32]} 5. Nbd2 {[%clk 0:02:58]}  Bd6 {[%clk 0:02:29]} 6. Ne5 {[%clk 0:02:56]}  O-O {[%clk 0:02:21]} 7. Be2 {[%clk 0:02:56]}  Qe7 {[%clk 0:02:21]} 8. g4 {[%clk 0:02:55]}  Be4 {[%clk 0:01:21]} 9. f3 {[%clk 0:02:55]}  Bg6 {[%clk 0:01:20]} 10. h4 {[%clk 0:02:56]}  h5 {[%clk 0:01:19]} 11. g5 {[%clk 0:02:51]}  Nfd7 {[%clk 0:01:14]} 12. Nxg6 {[%clk 0:02:50]}  fxg6 {[%clk 0:01:14]} 13. Bxd6 {[%clk 0:02:48]}  cxd6 {[%clk 0:01:14]} 14. Bd3 {[%clk 0:02:38]}  Qf7 {[%clk 0:01:10]} 15. Qe2 {[%clk 0:02:32]}  Nc6 {[%clk 0:01:11]} 16. a3 {[%clk 0:02:24]}  e5 {[%clk 0:01:07]} 17. dxe5 {[%clk 0:01:40]}  Ndxe5 {[%clk 0:01:08]} 18. O-O-O {[%clk 0:01:26]}  d4 {[%clk 0:01:04]} 19. e4 {[%clk 0:01:05]}  Rac8 {[%clk 0:00:57]} 20. Kb1 {[%clk 0:01:03]}  Kh7 {[%clk 0:00:54]} 21. Rdf1 {[%clk 0:00:52]}  Qf4 {[%clk 0:00:51]} 22. Bc4 {[%clk 0:00:50]}  Nxc4 {[%clk 0:00:43]} 23. Nxc4 {[%clk 0:00:50]}  b5 {[%clk 0:00:43]} 24. Nd2 {[%clk 0:00:48]}  b4 {[%clk 0:00:43]} 25. a4 {[%clk 0:00:47]}  Ne5 {[%clk 0:00:41]} 26. Nb3 {[%clk 0:00:37]}  Nc4 {[%clk 0:00:31]} 27. Rf2 {[%clk 0:00:17]}  Qe5 {[%clk 0:00:27]} 28. Rd1 {[%clk 0:00:14]}  Nxb2 {[%clk 0:00:25]} 29. Rxd4 {[%clk 0:00:12]}  Nxa4 {[%clk 0:00:23]} 30. Qa6 {[%clk 0:00:06]}  Nc3+ {[%clk 0:00:20]} 31. Kc1 {[%clk 0:00:06]}  Qg3 {[%clk 0:00:19]} 32. Rf1 {[%clk 0:00:04]}  Rxf3 {[%clk 0:00:16]} 33. Rxf3 {[%clk 0:00:04]}  Qxf3 {[%clk 0:00:17]} 34. Qxc8 {[%clk 0:00:04]}  Qf1+ {[%clk 0:00:17]} 35. Kd2 {[%clk 0:00:04]}  Nb1+ {[%clk 0:00:17]} 36. Ke3 {[%clk 0:00:04]}  Qe1+ {[%clk 0:00:13]} 37. Kf3 {[%clk 0:00:04]}  Qf1+ {[%clk 0:00:13]} 38. Kg3 {[%clk 0:00:03]}  Qg1+ {[%clk 0:00:11]} 39. Kf3 {[%clk 0:00:04]}  Qf1+ {[%clk 0:00:12]} 40. Kg3 {[%clk 0:00:05]}  Qg1+ {[%clk 0:00:12]} 41. Kf3 {[%clk 0:00:05]}  Qf1+ {[%clk 0:00:09]} 1/2-1/2


[Site "https://www.chess.com"]

[Event "Titled Tuesday Blitz May 11 2021"]
[White "Lintchevski, Daniil"]
[Black "Wieczorek, Oskar"]
[WhiteFideId "4171055"]
[BlackFideId "1133950"]
[WhiteElo "2505"]
[BlackElo "2258"]
[Result "1-0"]
[Round "02"]
[TimeControl "180+1"]
[Date "2021.05.11"]
[WhiteClock "0:00:07"]
[BlackClock "0:00:07"]

1. e4 {[%clk 0:03:00]}  e5 {[%clk 0:02:58]} 2. d4 {[%clk 0:03:00]}  exd4 {[%clk 0:02:56]} 3. Nf3 {[%clk 0:03:00]}  Nc6 {[%clk 0:02:56]} 4. Nxd4 {[%clk 0:02:56]}  Bc5 {[%clk 0:02:56]} 5. Nxc6 {[%clk 0:02:55]}  Qf6 {[%clk 0:02:55]} 6. Qf3 {[%clk 0:02:55]}  bxc6 {[%clk 0:02:51]} 7. Nd2 {[%clk 0:02:51]}  d6 {[%clk 0:02:34]} 8. Bd3 {[%clk 0:02:50]}  Bd4 {[%clk 0:02:21]} 9. c3 {[%clk 0:02:46]}  Qxf3 {[%clk 0:02:15]} 10. gxf3 {[%clk 0:02:41]}  Bf6 {[%clk 0:02:11]} 11. f4 {[%clk 0:02:40]}  Ne7 {[%clk 0:02:12]} 12. Nf3 {[%clk 0:02:39]}  Ng6 {[%clk 0:02:00]} 13. h4 {[%clk 0:02:38]}  Bg4 {[%clk 0:01:59]} 14. Nd4 {[%clk 0:02:32]}  Nxh4 {[%clk 0:01:54]} 15. e5 {[%clk 0:02:29]}  dxe5 {[%clk 0:01:43]} 16. fxe5 {[%clk 0:02:30]}  Be7 {[%clk 0:01:43]} 17. Nxc6 {[%clk 0:02:30]}  Bf3 {[%clk 0:01:35]} 18. Rxh4 {[%clk 0:02:29]}  Bxh4 {[%clk 0:01:31]} 19. Nd4 {[%clk 0:02:30]}  Bg4 {[%clk 0:01:27]} 20. Be3 {[%clk 0:02:24]}  O-O {[%clk 0:01:21]} 21. Kd2 {[%clk 0:02:18]}  c5 {[%clk 0:01:04]} 22. Nb5 {[%clk 0:02:12]}  Be7 {[%clk 0:00:58]} 23. Rh1 {[%clk 0:02:04]}  h5 {[%clk 0:00:55]} 24. Kc2 {[%clk 0:01:51]}  Bf3 {[%clk 0:00:37]} 25. Rh3 {[%clk 0:01:49]}  Bg4 {[%clk 0:00:37]} 26. Rg3 {[%clk 0:01:44]}  a5 {[%clk 0:00:14]} 27. Be4 {[%clk 0:01:26]}  Rab8 {[%clk 0:00:13]} 28. a4 {[%clk 0:01:26]}  g6 {[%clk 0:00:11]} 29. b3 {[%clk 0:01:17]}  Bd7 {[%clk 0:00:11]} 30. Nc7 {[%clk 0:01:17]}  Rfd8 {[%clk 0:00:07]} 31. Nd5 {[%clk 0:01:12]}  Bh4 {[%clk 0:00:06]} 32. Rg1 {[%clk 0:01:09]}  Bc6 {[%clk 0:00:05]} 33. c4 {[%clk 0:01:07]}  Bxd5 {[%clk 0:00:05]} 34. Bxd5 {[%clk 0:01:07]}  Rbc8 {[%clk 0:00:05]} 35. Rxg6+ {[%clk 0:01:07]}  Kf8 {[%clk 0:00:06]} 36. Rh6 {[%clk 0:01:06]}  Kg7 {[%clk 0:00:06]} 37. Rxh5 {[%clk 0:01:07]}  Be7 {[%clk 0:00:06]} 38. Rf5 {[%clk 0:01:05]}  f6 {[%clk 0:00:07]} 39. Rf3 {[%clk 0:00:58]}  Rf8 {[%clk 0:00:06]} 40. Rg3+ {[%clk 0:00:57]}  Kh7 {[%clk 0:00:07]} 41. Be4+ {[%clk 0:00:57]}  f5 {[%clk 0:00:07]} 42. Bd5 {[%clk 0:00:54]}  f4 {[%clk 0:00:07]} 43. Rh3+ {[%clk 0:00:54]}  Kg6 {[%clk 0:00:07]} 44. Bd2 {[%clk 0:00:54]}  Kf5 {[%clk 0:00:06]} 45. Rh5+ {[%clk 0:00:51]}  Kg4 {[%clk 0:00:06]} 46. Rh7 {[%clk 0:00:51]}  Bg5 {[%clk 0:00:07]} 47. Be6+ {[%clk 0:00:51]}  Kf3 {[%clk 0:00:06]} 48. Bxc8 {[%clk 0:00:51]}  Rxc8 {[%clk 0:00:07]} 49. Rg7 {[%clk 0:00:48]}  Bh4 {[%clk 0:00:07]} 50. Rf7 {[%clk 0:00:48]}  Bg5 {[%clk 0:00:07]} 51. e6 {[%clk 0:00:31]}  Re8 {[%clk 0:00:06]} 52. Rf5 {[%clk 0:00:31]}  Kg4 {[%clk 0:00:06]} 53. Rxc5 {[%clk 0:00:31]}  Rxe6 {[%clk 0:00:07]} 54. Rxa5 {[%clk 0:00:31]}  Bh4 {[%clk 0:00:06]} 55. Ra8 {[%clk 0:00:17]}  Bxf2 {[%clk 0:00:07]} 56. Rg8+ {[%clk 0:00:17]}  Kf3 {[%clk 0:00:05]} 57. Rf8 {[%clk 0:00:17]}  Bg3 {[%clk 0:00:05]} 58. a5 {[%clk 0:00:18]}  Re2 {[%clk 0:00:05]} 59. Kd3 {[%clk 0:00:17]}  Re6 {[%clk 0:00:04]} 60. b4 {[%clk 0:00:16]}  Rd6+ {[%clk 0:00:05]} 61. Kc2 {[%clk 0:00:16]}  Ke4 {[%clk 0:00:05]} 62. c5 {[%clk 0:00:15]}  Rd7 {[%clk 0:00:05]} 63. Bxf4 {[%clk 0:00:13]}  Bxf4 {[%clk 0:00:05]} 64. Kb3 {[%clk 0:00:13]}  Rd3+ {[%clk 0:00:05]} 65. Kc4 {[%clk 0:00:13]}  Rd4+ {[%clk 0:00:05]} 66. Kb5 {[%clk 0:00:14]}  Bd2 {[%clk 0:00:05]} 67. Re8+ {[%clk 0:00:12]}  Kd3 {[%clk 0:00:06]} 68. a6 {[%clk 0:00:12]}  Rxb4+ {[%clk 0:00:06]} 69. Kc6 {[%clk 0:00:11]}  Ra4 {[%clk 0:00:07]} 70. Kb7 {[%clk 0:00:12]}  Be3 {[%clk 0:00:07]} 71. Rxe3+ {[%clk 0:00:04]}  Kxe3 {[%clk 0:00:07]} 72. c6 {[%clk 0:00:05]}  Rb4+ {[%clk 0:00:07]} 73. Kc7 {[%clk 0:00:05]}  Ra4 {[%clk 0:00:07]} 74. Kb6 {[%clk 0:00:05]}  Rb4+ {[%clk 0:00:08]} 75. Ka5 {[%clk 0:00:05]}  Rc4 {[%clk 0:00:08]} 76. Kb5 {[%clk 0:00:06]}  Kd4 {[%clk 0:00:08]} 77. a7 {[%clk 0:00:06]}  Rc5+ {[%clk 0:00:08]} 78. Kb6 {[%clk 0:00:06]}  Rc2 {[%clk 0:00:06]} 79. a8=Q {[%clk 0:00:07]}  Rb2+ {[%clk 0:00:07]} 1-0


[Site "https://www.chess.com"]

[Event "Titled Tuesday Blitz May 11 2021"]
[White "Lomasov, Semyon"]
[Black "Flores Quillas, Diego Saul Rodri"]
[WhiteFideId "24164879"]
[BlackFideId "3822508"]
[WhiteElo "2445"]
[BlackElo "2071"]
[Result "1-0"]
[Round "02"]
[TimeControl "180+1"]
[Date "2021.05.11"]
[WhiteClock "0:00:14"]
[BlackClock "0:00:34"]

1. e4 {[%clk 0:02:59]}  c5 {[%clk 0:03:00]} 2. Nf3 {[%clk 0:02:59]}  e6 {[%clk 0:03:00]} 3. b3 {[%clk 0:02:59]}  Nf6 {[%clk 0:03:00]} 4. e5 {[%clk 0:02:59]}  Nd5 {[%clk 0:03:00]} 5. Bb2 {[%clk 0:03:00]}  Be7 {[%clk 0:03:00]} 6. g3 {[%clk 0:03:00]}  O-O {[%clk 0:03:00]} 7. Bg2 {[%clk 0:03:01]}  d6 {[%clk 0:03:00]} 8. exd6 {[%clk 0:02:56]}  Qxd6 {[%clk 0:02:55]} 9. Na3 {[%clk 0:02:54]}  Nc6 {[%clk 0:02:54]} 10. O-O {[%clk 0:02:53]}  Bf6 {[%clk 0:02:49]} 11. Bxf6 {[%clk 0:02:47]}  Nxf6 {[%clk 0:02:49]} 12. Nc4 {[%clk 0:02:48]}  Qc7 {[%clk 0:02:49]} 13. a4 {[%clk 0:02:48]}  b6 {[%clk 0:02:49]} 14. Re1 {[%clk 0:02:27]}  Bb7 {[%clk 0:02:48]} 15. a5 {[%clk 0:02:26]}  Rad8 {[%clk 0:02:43]} 16. axb6 {[%clk 0:02:22]}  axb6 {[%clk 0:02:43]} 17. Qc1 {[%clk 0:02:23]}  Nb4 {[%clk 0:02:36]} 18. Qb2 {[%clk 0:02:02]}  Bxf3 {[%clk 0:02:29]} 19. Bxf3 {[%clk 0:02:03]}  b5 {[%clk 0:02:29]} 20. Na3 {[%clk 0:02:00]}  Rxd2 {[%clk 0:02:29]} 21. Qc3 {[%clk 0:01:58]}  Rfd8 {[%clk 0:02:23]} 22. Nxb5 {[%clk 0:01:51]}  Qb6 {[%clk 0:02:00]} 23. Na3 {[%clk 0:01:47]}  c4 {[%clk 0:01:56]} 24. Rf1 {[%clk 0:01:31]}  Qc5 {[%clk 0:01:50]} 25. Qxc4 {[%clk 0:01:16]}  Qxc4 {[%clk 0:01:47]} 26. bxc4 {[%clk 0:01:14]}  Nxc2 {[%clk 0:01:46]} 27. Nxc2 {[%clk 0:01:13]}  Rxc2 {[%clk 0:01:47]} 28. Rfc1 {[%clk 0:01:13]}  Rxc1+ {[%clk 0:01:46]} 29. Rxc1 {[%clk 0:01:14]}  Kf8 {[%clk 0:01:42]} 30. Kf1 {[%clk 0:01:14]}  Ke7 {[%clk 0:01:42]} 31. Ke2 {[%clk 0:01:14]}  Nd7 {[%clk 0:01:41]} 32. c5 {[%clk 0:01:14]}  Rc8 {[%clk 0:01:41]} 33. c6 {[%clk 0:01:13]}  Ne5 {[%clk 0:01:41]} 34. Be4 {[%clk 0:01:04]}  f5 {[%clk 0:01:39]} 35. f4 {[%clk 0:01:05]}  Nxc6 {[%clk 0:01:33]} 36. Rxc6 {[%clk 0:01:00]}  Rb8 {[%clk 0:01:24]} 37. Bc2 {[%clk 0:01:00]}  h6 {[%clk 0:01:21]} 38. Ke3 {[%clk 0:00:56]}  g5 {[%clk 0:01:20]} 39. Bd3 {[%clk 0:00:53]}  Rb4 {[%clk 0:01:18]} 40. h4 {[%clk 0:00:47]}  gxf4+ {[%clk 0:01:17]} 41. gxf4 {[%clk 0:00:47]}  Ra4 {[%clk 0:01:07]} 42. h5 {[%clk 0:00:42]}  Rb4 {[%clk 0:01:01]} 43. Rc7+ {[%clk 0:00:42]}  Kd6 {[%clk 0:01:00]} 44. Rh7 {[%clk 0:00:42]}  e5 {[%clk 0:01:00]} 45. Rxh6+ {[%clk 0:00:41]}  Kd5 {[%clk 0:01:01]} 46. Bxf5 {[%clk 0:00:33]}  exf4+ {[%clk 0:00:57]} 47. Kf3 {[%clk 0:00:32]}  Ke5 {[%clk 0:00:57]} 48. Bg4 {[%clk 0:00:16]}  Rb3+ {[%clk 0:00:53]} 49. Kf2 {[%clk 0:00:17]}  Rb2+ {[%clk 0:00:49]} 50. Be2 {[%clk 0:00:17]}  Ke4 {[%clk 0:00:48]} 51. Re6+ {[%clk 0:00:16]}  Kf5 {[%clk 0:00:48]} 52. Rg6 {[%clk 0:00:16]}  Ra2 {[%clk 0:00:41]} 53. Rg8 {[%clk 0:00:15]}  Ra3 {[%clk 0:00:37]} 54. h6 {[%clk 0:00:14]}  Ra6 {[%clk 0:00:34]} 55. h7 {[%clk 0:00:14]} 1-0


[Site "https://www.chess.com"]

[Event "Titled Tuesday Blitz May 11 2021"]
[White "Mamedyarov, Shakhriyar"]
[Black "Karacsonyi, Gellert"]
[WhiteFideId "13401319"]
[BlackFideId "764620"]
[WhiteElo "2716"]
[BlackElo "2192"]
[Result "1-0"]
[Round "02"]
[TimeControl "180+1"]
[Date "2021.05.11"]
[WhiteClock "0:00:32"]
[BlackClock "0:00:07"]

1. d4 {[%clk 0:03:00]}  Nf6 {[%clk 0:02:58]} 2. c4 {[%clk 0:02:56]}  e6 {[%clk 0:02:59]} 3. Nc3 {[%clk 0:02:56]}  Bb4 {[%clk 0:02:58]} 4. Qc2 {[%clk 0:02:57]}  O-O {[%clk 0:02:58]} 5. e4 {[%clk 0:02:56]}  d5 {[%clk 0:02:57]} 6. e5 {[%clk 0:02:56]}  Ne4 {[%clk 0:02:58]} 7. Bd3 {[%clk 0:02:57]}  c5 {[%clk 0:02:58]} 8. Nf3 {[%clk 0:02:57]}  cxd4 {[%clk 0:02:53]} 9. Nxd4 {[%clk 0:02:58]}  Nc6 {[%clk 0:02:52]} 10. Nxc6 {[%clk 0:02:49]}  bxc6 {[%clk 0:02:52]} 11. O-O {[%clk 0:02:49]}  f5 {[%clk 0:02:39]} 12. exf6 {[%clk 0:02:47]}  Nxf6 {[%clk 0:02:38]} 13. Re1 {[%clk 0:02:37]}  h6 {[%clk 0:02:35]} 14. a3 {[%clk 0:02:33]}  Bd6 {[%clk 0:02:30]} 15. h3 {[%clk 0:02:29]}  Bc7 {[%clk 0:02:14]} 16. b4 {[%clk 0:02:06]}  e5 {[%clk 0:02:00]} 17. cxd5 {[%clk 0:01:52]}  cxd5 {[%clk 0:01:35]} 18. Bb2 {[%clk 0:01:51]}  e4 {[%clk 0:01:34]} 19. Bf1 {[%clk 0:01:51]}  Bb7 {[%clk 0:01:17]} 20. Rad1 {[%clk 0:01:41]}  Rc8 {[%clk 0:01:06]} 21. Qb3 {[%clk 0:01:40]}  Qe7 {[%clk 0:01:03]} 22. g3 {[%clk 0:01:18]}  Qf7 {[%clk 0:01:03]} 23. Nb5 {[%clk 0:01:13]}  Bb8 {[%clk 0:00:58]} 24. Bd4 {[%clk 0:01:09]}  a6 {[%clk 0:00:58]} 25. Nc3 {[%clk 0:01:09]}  Nd7 {[%clk 0:00:49]} 26. Be2 {[%clk 0:00:59]}  Be5 {[%clk 0:00:49]} 27. Rf1 {[%clk 0:00:54]}  Bxd4 {[%clk 0:00:49]} 28. Rxd4 {[%clk 0:00:55]}  Ne5 {[%clk 0:00:49]} 29. Nxd5 {[%clk 0:00:53]}  Bxd5 {[%clk 0:00:42]} 30. Qxd5 {[%clk 0:00:51]}  Qxd5 {[%clk 0:00:38]} 31. Rxd5 {[%clk 0:00:49]}  Nf3+ {[%clk 0:00:36]} 32. Kg2 {[%clk 0:00:44]}  Rc3 {[%clk 0:00:36]} 33. Ra5 {[%clk 0:00:38]}  Nd4 {[%clk 0:00:32]} 34. Bxa6 {[%clk 0:00:39]}  e3 {[%clk 0:00:32]} 35. Re5 {[%clk 0:00:39]}  Rxa3 {[%clk 0:00:18]} 36. Bc4+ {[%clk 0:00:38]}  Kh8 {[%clk 0:00:17]} 37. Rxe3 {[%clk 0:00:35]}  Ra4 {[%clk 0:00:06]} 38. Re4 {[%clk 0:00:32]}  Nf5 {[%clk 0:00:04]} 39. Bd3 {[%clk 0:00:30]}  Nd6 {[%clk 0:00:04]} 40. Rd4 {[%clk 0:00:30]}  Nf7 {[%clk 0:00:04]} 41. Rf4 {[%clk 0:00:30]}  Ra7 {[%clk 0:00:04]} 42. Bc4 {[%clk 0:00:29]}  g5 {[%clk 0:00:03]} 43. Rxf7 {[%clk 0:00:29]}  Rfxf7 {[%clk 0:00:03]} 44. Bxf7 {[%clk 0:00:30]}  Rxf7 {[%clk 0:00:03]} 45. b5 {[%clk 0:00:30]}  Rb7 {[%clk 0:00:04]} 46. Rb1 {[%clk 0:00:31]}  Rb6 {[%clk 0:00:04]} 47. Kf3 {[%clk 0:00:31]}  Kg7 {[%clk 0:00:05]} 48. Ke4 {[%clk 0:00:31]}  Kf6 {[%clk 0:00:06]} 49. Kd5 {[%clk 0:00:32]}  Kf5 {[%clk 0:00:06]} 50. Kc5 {[%clk 0:00:32]}  Rb8 {[%clk 0:00:07]} 51. b6 {[%clk 0:00:32]} 1-0


[Site "https://www.chess.com"]

[Event "Titled Tuesday Blitz May 11 2021"]
[White "Neelotpal, Das"]
[Black "Gritsenko, Nikolai"]
[WhiteFideId "5003512"]
[BlackFideId "14112493"]
[WhiteElo "2427"]
[BlackElo "2389"]
[Result "0-1"]
[Round "02"]
[TimeControl "180+1"]
[Date "2021.05.11"]
[WhiteClock "0:00:02"]
[BlackClock "0:00:07"]

1. e4 {[%clk 0:03:00]}  e5 {[%clk 0:02:58]} 2. Nf3 {[%clk 0:03:01]}  d6 {[%clk 0:02:58]} 3. Bc4 {[%clk 0:03:01]}  Nf6 {[%clk 0:02:57]} 4. d3 {[%clk 0:03:01]}  Be7 {[%clk 0:02:57]} 5. O-O {[%clk 0:02:59]}  O-O {[%clk 0:02:57]} 6. a4 {[%clk 0:02:59]}  Be6 {[%clk 0:02:57]} 7. Nbd2 {[%clk 0:02:58]}  Nc6 {[%clk 0:02:52]} 8. a5 {[%clk 0:02:58]}  a6 {[%clk 0:02:51]} 9. c3 {[%clk 0:02:58]}  h6 {[%clk 0:02:44]} 10. Re1 {[%clk 0:02:50]}  Bxc4 {[%clk 0:02:41]} 11. dxc4 {[%clk 0:02:49]}  Qd7 {[%clk 0:02:34]} 12. Nf1 {[%clk 0:02:47]}  Kh7 {[%clk 0:02:29]} 13. Qd3 {[%clk 0:02:46]}  Nd8 {[%clk 0:02:17]} 14. Ne3 {[%clk 0:02:43]}  Ne6 {[%clk 0:02:04]} 15. b4 {[%clk 0:02:42]}  Nf4 {[%clk 0:01:55]} 16. Qc2 {[%clk 0:02:42]}  c6 {[%clk 0:01:47]} 17. Nf5 {[%clk 0:02:37]}  Ng6 {[%clk 0:01:46]} 18. Bd2 {[%clk 0:02:27]}  Rfe8 {[%clk 0:01:43]} 19. Rad1 {[%clk 0:02:27]}  Bf8 {[%clk 0:01:43]} 20. Bc1 {[%clk 0:02:24]}  Qe6 {[%clk 0:01:41]} 21. Qe2 {[%clk 0:01:59]}  d5 {[%clk 0:01:23]} 22. cxd5 {[%clk 0:01:56]}  cxd5 {[%clk 0:01:23]} 23. Ng3 {[%clk 0:01:56]}  Rac8 {[%clk 0:01:19]} 24. Bd2 {[%clk 0:01:50]}  Nf4 {[%clk 0:01:10]} 25. Qf1 {[%clk 0:01:44]}  Qg4 {[%clk 0:01:02]} 26. h3 {[%clk 0:01:26]}  Nxh3+ {[%clk 0:00:48]} 27. gxh3 {[%clk 0:01:26]}  Qxf3 {[%clk 0:00:48]} 28. Re3 {[%clk 0:01:26]}  Qf4 {[%clk 0:00:48]} 29. exd5 {[%clk 0:01:27]}  Qc4 {[%clk 0:00:39]} 30. Qd3+ {[%clk 0:01:13]}  Qxd3 {[%clk 0:00:38]} 31. Rxd3 {[%clk 0:01:13]}  e4 {[%clk 0:00:36]} 32. Rd4 {[%clk 0:01:13]}  Bd6 {[%clk 0:00:36]} 33. c4 {[%clk 0:00:46]}  Be5 {[%clk 0:00:34]} 34. Be3 {[%clk 0:00:47]}  Bxd4 {[%clk 0:00:33]} 35. Rxd4 {[%clk 0:00:47]}  g6 {[%clk 0:00:29]} 36. c5 {[%clk 0:00:46]}  Rcd8 {[%clk 0:00:28]} 37. d6 {[%clk 0:00:46]}  Re6 {[%clk 0:00:26]} 38. Rd1 {[%clk 0:00:37]}  Nd7 {[%clk 0:00:23]} 39. Bd4 {[%clk 0:00:31]}  Rc8 {[%clk 0:00:22]} 40. Kg2 {[%clk 0:00:26]}  f5 {[%clk 0:00:22]} 41. Ne2 {[%clk 0:00:24]}  g5 {[%clk 0:00:21]} 42. Bb2 {[%clk 0:00:24]}  Kg6 {[%clk 0:00:21]} 43. Nc3 {[%clk 0:00:22]}  f4 {[%clk 0:00:20]} 44. Nd5 {[%clk 0:00:22]}  Rce8 {[%clk 0:00:16]} 45. Nc7 {[%clk 0:00:22]}  Kf5 {[%clk 0:00:16]} 46. Rd5+ {[%clk 0:00:18]}  Kg6 {[%clk 0:00:16]} 47. Nxe6 {[%clk 0:00:14]}  Rxe6 {[%clk 0:00:16]} 48. b5 {[%clk 0:00:14]}  e3 {[%clk 0:00:15]} 49. fxe3 {[%clk 0:00:13]}  axb5 {[%clk 0:00:14]} 50. a6 {[%clk 0:00:12]}  fxe3 {[%clk 0:00:11]} 51. c6 {[%clk 0:00:10]}  bxc6 {[%clk 0:00:11]} 52. a7 {[%clk 0:00:07]}  Re8 {[%clk 0:00:10]} 53. Rd1 {[%clk 0:00:05]}  Ra8 {[%clk 0:00:09]} 54. Bd4 {[%clk 0:00:03]}  c5 {[%clk 0:00:09]} 55. Bxe3 {[%clk 0:00:03]}  Rxa7 {[%clk 0:00:10]} 56. Rb1 {[%clk 0:00:04]}  b4 {[%clk 0:00:09]} 57. Rc1 {[%clk 0:00:03]}  Ra5 {[%clk 0:00:09]} 58. Kf3 {[%clk 0:00:03]}  Kf5 {[%clk 0:00:09]} 59. Rd1 {[%clk 0:00:03]}  Ke6 {[%clk 0:00:09]} 60. Kg4 {[%clk 0:00:02]}  b3 {[%clk 0:00:09]} 61. Kh5 {[%clk 0:00:02]}  c4 {[%clk 0:00:09]} 62. Bd4 {[%clk 0:00:02]}  Rd5 {[%clk 0:00:08]} 63. Re1+ {[%clk 0:00:01]}  Kxd6 {[%clk 0:00:08]} 64. Bc3 {[%clk 0:00:01]}  Rd3 {[%clk 0:00:08]} 65. Bb4+ {[%clk 0:00:01]}  Kc6 {[%clk 0:00:08]} 66. Kxh6 {[%clk 0:00:02]}  Rxh3+ {[%clk 0:00:07]} 0-1


[Site "https://www.chess.com"]

[Event "Titled Tuesday Blitz May 11 2021"]
[White "Nouri, Alekhine"]
[Black "Quparadze, Giga"]
[WhiteFideId "5216184"]
[BlackFideId "13602250"]
[WhiteElo "1894"]
[BlackElo "2658"]
[Result "0-1"]
[Round "02"]
[TimeControl "180+1"]
[Date "2021.05.11"]
[WhiteClock "0:01:24"]
[BlackClock "0:02:02"]

1. e4 {[%clk 0:03:00]}  c5 {[%clk 0:02:59]} 2. Nc3 {[%clk 0:03:00]}  e6 {[%clk 0:02:59]} 3. f4 {[%clk 0:03:00]}  d5 {[%clk 0:02:58]} 4. Nf3 {[%clk 0:03:00]}  d4 {[%clk 0:02:58]} 5. Bb5+ {[%clk 0:03:00]}  Bd7 {[%clk 0:02:57]} 6. Bxd7+ {[%clk 0:02:59]}  Nxd7 {[%clk 0:02:58]} 7. Ne2 {[%clk 0:02:59]}  Ngf6 {[%clk 0:02:58]} 8. d3 {[%clk 0:02:59]}  Be7 {[%clk 0:02:52]} 9. O-O {[%clk 0:02:58]}  Qc7 {[%clk 0:02:52]} 10. Qe1 {[%clk 0:02:56]}  O-O-O {[%clk 0:02:51]} 11. Qg3 {[%clk 0:02:52]}  g6 {[%clk 0:02:48]} 12. Ng5 {[%clk 0:02:50]}  Nh5 {[%clk 0:02:48]} 13. Qh3 {[%clk 0:02:48]}  Rdf8 {[%clk 0:02:47]} 14. g4 {[%clk 0:02:47]}  Nhf6 {[%clk 0:02:46]} 15. f5 {[%clk 0:02:31]}  e5 {[%clk 0:02:27]} 16. Ng3 {[%clk 0:02:06]}  h6 {[%clk 0:02:20]} 17. Nf3 {[%clk 0:02:04]}  g5 {[%clk 0:02:20]} 18. Nh5 {[%clk 0:01:49]}  Nxh5 {[%clk 0:02:20]} 19. Qxh5 {[%clk 0:01:50]}  Nf6 {[%clk 0:02:20]} 20. Qh3 {[%clk 0:01:50]}  h5 {[%clk 0:02:20]} 21. Qg3 {[%clk 0:01:43]}  hxg4 {[%clk 0:02:20]} 22. Nxg5 {[%clk 0:01:42]}  Kb8 {[%clk 0:02:04]} 23. h4 {[%clk 0:01:24]}  gxh3 {[%clk 0:02:03]} 24. Nxh3 {[%clk 0:01:24]}  Rfg8 {[%clk 0:02:02]} 0-1


[Site "https://www.chess.com"]